lending/lending_fUSD_20240128
["ID","MTS","AMOUNT","RATE_DAILY","PERIOD"]
[312933966,1706470252434,-209.753134,0.00041096,14]
[312933967,1706470252443,-209.753134,0.00041096,14]
[312933968,1706470252452,-209.753134,0.00041096,14]
[312933969,1706470252462,-209.753134,0.00041096,14]
[312933970,1706470252471,-151.0,0.00041096,14]
[312933971,1706470252482,-151.0,0.00041096,14]
[312933972,1706470252492,-151.0,0.00041096,14]
[312933973,1706470252501,-151.0,0.00041096,14]
[312933974,1706470252510,-298.76904,0.00041096,14]
[312933975,1706470252520,-6839.46,0.00041096,2]
[312933976,1706470252530,-151.0,0.00041096,14]
[312933977,1706470252539,-151.0,0.00041096,14]
[312933978,1706470252548,-151.0,0.00041096,14]
[312933979,1706470252558,-151.0,0.00041096,14]
[312933980,1706470252567,-151.0,0.00041096,14]
[312933981,1706470252576,-151.0,0.00041096,14]
[312933982,1706470252585,-151.0,0.00041096,14]
[312933983,1706470252597,-151.0,0.00041096,14]
[312933984,1706470252606,-271.1195,0.00041096,14]
[312933985,1706470252616,-1950.33163,0.00041096,14]
[312933986,1706470252625,-1950.33163,0.00041096,14]
[312933987,1706470252635,-1950.33163,0.00041096,14]
[312933988,1706470252645,-1950.33163,0.00041096,14]
[312933989,1706470252654,-1950.33163,0.00041096,14]
[312933990,1706470252663,-1950.33163,0.00041096,14]
[312933991,1706470252672,-1950.33163,0.00041096,14]
[312933992,1706470252682,-1950.33163,0.00041096,14]
[312933993,1706470252691,-1950.33163,0.00041096,14]
[312933994,1706470252824,-1950.33163,0.00041096,14]
[312933995,1706470252837,-1950.33163,0.00041096,14]
[312933996,1706470252848,-1950.33163,0.00041096,14]
[312933997,1706470252857,-1950.33163,0.00041096,14]
[312933998,1706470252866,-1950.33163,0.00041096,14]
[312933999,1706470252875,-1950.33163,0.00041096,14]
[312934000,1706470252884,-1950.33163,0.00041096,14]
[312934001,1706470252893,-676.717704,0.00041096,14]
[312934002,1706470252902,-676.717704,0.00041096,14]
[312934003,1706470252911,-676.717704,0.00041096,14]
[312934004,1706470252920,-676.717704,0.00041096,14]
[312934005,1706470252929,-676.717704,0.00041096,14]
[312934006,1706470252937,-676.717704,0.00041096,14]
[312934007,1706470252946,-151.0,0.00041096,14]
[312934008,1706470252955,-676.717704,0.00041096,14]
[312934009,1706470252966,-151.0,0.00041096,14]
[312934010,1706470252975,-676.717704,0.00041096,14]
[312934011,1706470252984,-151.0,0.00041096,14]
[312934012,1706470252995,-151.0,0.00041096,14]
[312934013,1706470253004,-151.0,0.00041096,14]
[312934014,1706470253013,-282.0,0.00041096,14]
[312934015,1706470253022,-196.933261,0.00041096,14]
[312934016,1706470253031,-196.933261,0.00041096,14]
[312934017,1706470253041,-283.782873,0.00041096,14]
[312934018,1706470253050,-151.0,0.00041096,14]
[312934019,1706470253059,-364.228279,0.00041096,14]
[312934020,1706470253068,-364.228279,0.00041096,14]
[312934021,1706470253078,-364.228279,0.00041096,14]
[312934022,1706470253087,-364.228274,0.00041096,14]
[312934023,1706470253097,-151.0,0.00041096,14]
[312934024,1706470253107,-151.0,0.00041096,14]
[312934025,1706470253116,-233.671606,0.00041096,14]
[312934026,1706470253125,-233.671606,0.00041096,14]
[312934027,1706470253134,-233.671606,0.00041096,14]
[312934028,1706470253144,-233.671599,0.00041096,14]
[312934029,1706470253153,-151.0,0.00041096,14]
[312934030,1706470253162,-151.0,0.00041096,14]
[312934031,1706470253171,-1136.594861,0.00041096,14]
[312934032,1706470253180,-1136.594861,0.00041096,14]
[312934033,1706470253190,-151.0,0.00041096,14]
[312934034,1706470253199,-151.0,0.00041096,14]
[312934035,1706470253208,-151.0,0.00041096,14]
[312934036,1706470253217,-1002.436806,0.00041096,14]
[312934037,1706470253226,-1002.436806,0.00041096,14]
[312934038,1706470253234,-1002.436806,0.00041096,14]
[312934039,1706470253244,-1002.436815,0.00041096,14]
[312934040,1706470253253,-986.756403,0.00041096,14]
[312934041,1706470253262,-986.756403,0.00041096,14]
[312934042,1706470253271,-986.756403,0.00041096,14]
[312934043,1706470253280,-986.756395,0.00041096,14]
[312934044,1706470253289,-418.511406,0.00041096,14]
[312934045,1706470253298,-418.511406,0.00041096,14]
[312934046,1706470253307,-418.511406,0.00041096,14]
[312934047,1706470253317,-418.5114,0.00041096,14]
[312934048,1706470253326,-209.753134,0.00041096,14]
[312934049,1706470253335,-209.753134,0.00041096,14]
[312934050,1706470253344,-209.753134,0.00041096,14]
[312934051,1706470253353,-209.753136,0.00041096,14]
[312934052,1706470253362,-151.0,0.00041096,14]
[312934053,1706470253371,-1950.33163,0.00041096,14]
[312934054,1706470253381,-1950.33163,0.00041096,14]
[312934055,1706470253390,-676.717704,0.00041096,14]
[312934056,1706470253399,-150.0,0.00041096,2]
[312934057,1706470253409,-155.0,0.00041097,2]
[312934058,1706470253420,-314.04,0.000411,2]
[312934059,1706470253429,-1793.72,0.000411,2]
[312934060,1706470253438,-1793.72,0.000411,2]
[312934061,1706470253447,-1793.72,0.000411,2]
[312934062,1706470253457,-1793.72,0.000411,2]
[312934063,1706470253465,-1793.72,0.000411,2]
[312934064,1706470253475,-1793.72,0.000411,2]
[312934065,1706470253484,-1793.72,0.000411,2]
[312934066,1706470253493,-1793.72,0.000411,2]
[312934067,1706470253502,-1793.72,0.000411,2]
[312934068,1706470253510,-1793.72,0.000411,2]
[312934069,1706470253520,-226.168015,0.00041135,30]
[312934070,1706470253529,-1961.462314,0.00041135,30]
[312934071,1706470253538,-5880.285322,0.00041135,30]
[312934072,1706470253547,-14257.70489,0.00041135,30]
[312934073,1706470253557,-260.832583,0.00041135,30]
[312934074,1706470253566,-346.075421,0.00041135,30]
[312934075,1706470253576,-173.368767,0.00041304,30]
[312934076,1706470253585,-276.94369919,0.00041522,4]
[312934077,1706470253595,-226.168015,0.00041643,30]
[312934078,1706470253604,-1961.462314,0.00041643,30]
[312934079,1706470253613,-5880.285322,0.00041643,30]
[312934080,1706470253622,-14257.70489,0.00041643,30]
[312934081,1706470253631,-260.832583,0.00041643,30]
[312934082,1706470253640,-346.075421,0.00041643,30]
[312934083,1706470253650,-152.68540592,0.00041665,13]
[312934084,1706470253659,-25285.71,0.000417,7]
[312934085,1706470253668,-210.0,0.00041785,2]
[312934086,1706470253678,-922.097762,0.000418,37]
[312934087,1706470253687,-1036.87942914,0.00041814,30]
[312934088,1706470253697,-1000.0,0.00041849,30]
[312934089,1706470253706,-152.92,0.000419,4]
[312934090,1706470253715,-152.92,0.000419,4]
[312934091,1706470253724,-2001.66,0.000419,2]
[312934092,1706470253734,-1200.0,0.000419,30]
[312934093,1706470253743,-323.33,0.000419,4]
[312934094,1706470253752,-323.33,0.000419,4]
[312934095,1706470253762,-323.33,0.000419,4]
[312934096,1706470253772,-323.33,0.000419,4]
[312934097,1706470253781,-323.33,0.000419,4]
[312934098,1706470253790,-323.33,0.000419,4]
[312934099,1706470253800,-323.33,0.000419,4]
[312934100,1706470253809,-323.33,0.000419,4]
[312934101,1706470253818,-323.33,0.000419,4]
[312934102,1706470253828,-323.33,0.000419,4]
[312934103,1706470253838,-323.33,0.000419,4]
[312934104,1706470253848,-323.33,0.000419,4]
[312934105,1706470253858,-323.33,0.000419,4]
[312934106,1706470253867,-323.33,0.000419,4]
[312934107,1706470253876,-323.33,0.000419,4]
[312934108,1706470253886,-323.33,0.000419,4]
[312934109,1706470253895,-323.33,0.000419,4]
[312934110,1706470253905,-323.33,0.000419,4]
[312934111,1706470253914,-323.33,0.000419,4]
[312934112,1706470253923,-323.33,0.000419,4]
[312934113,1706470253932,-1033.05065177,0.00041947,30]
[312934114,1706470253941,-908.77011638,0.00041977,2]
[312934115,1706470253950,-865.36961823,0.00041977,2]
[312934116,1706470253960,-399.42302973,0.00041977,34]
[312934117,1706470253969,-8436.16241472,0.00041977,2]
[312934118,1706470253978,-1178.18412084,0.00041977,2]
[312934119,1706470253987,-4848.55790876,0.00041978,16]
[312934120,1706470253998,-1652.80235479,0.00041978,10]
[312934121,1706470254007,-173.368767,0.00041981,30]
[312934122,1706470254016,-526.0,0.0004199,2]
[312934123,1706470254026,-465.0,0.0004199,2]
[312934124,1706470254035,-2000.0,0.00042,2]
[312934125,1706470254044,-200.0,0.00042,2]
[312934126,1706470254053,-201.0,0.00042,10]
[312934127,1706470254062,-163.86,0.00042009,2]
[312934128,1706470254072,-181.200001,0.00042024,30]
[312934129,1706470254081,-151.0,0.00042077,14]
[312934130,1706470254091,-1950.33163,0.00042077,14]
[312934131,1706470254100,-1950.331626,0.00042077,14]
[312934132,1706470254109,-661.05214348,0.00042077,10]
[312934133,1706470254118,-2988.0,0.00042077,10]
[312934134,1706470254127,-629.10127623,0.00042077,10]
[312934135,1706470254137,-5169.51961609,0.00042077,7]
[312934136,1706470254146,-42000.0,0.00042077,7]
[312934137,1706470254155,-1000.0,0.00042077,10]
[312934138,1706470254164,-500.0,0.00042077,10]
[312934139,1706470254173,-2257813.21510511,0.00042077,7]
[312934140,1706470254182,-12153.07457838,0.00042077,7]
[312934141,1706470254191,-50696.92110137,0.00042077,7]
[312934142,1706470254200,-80209.00929352,0.00042077,7]
[312934143,1706470254209,-2334.60477361,0.00042077,7]
[312934144,1706470254219,-44202.73029466,0.00042077,7]
[312934145,1706470254228,-711.43050657,0.00042077,10]
[312934146,1706470254237,-646.42600222,0.00042077,7]
[312934147,1706470254246,-204.03859653,0.00042077,7]
[312934148,1706470254255,-10310.29537336,0.00042077,7]
[312934149,1706470254264,-1021.87227968,0.00042077,7]
[312934150,1706470254273,-1843.7590824,0.00042077,120]
[312934151,1706470254283,-343.87008342,0.00042077,30]
[312934152,1706470254293,-3720.1383,0.00042077,7]
[312934153,1706470254302,-300.0,0.00042077,49]
[312934154,1706470254311,-219.54939017,0.00042077,120]
[312934155,1706470254320,-173.11299604,0.00042077,30]
[312934156,1706470254330,-161.54523631,0.00042077,100]
[312934157,1706470254339,-420.34854598,0.00042077,30]
[312934158,1706470254349,-230.27184634,0.00042077,120]
[312934159,1706470254359,-416.61376374,0.00042077,120]
[312934160,1706470254369,-412.36306579,0.00042077,30]
[312934161,1706470254378,-492.85166161,0.00042077,120]
[312934162,1706470254387,-172.95382008,0.00042077,30]
[312934163,1706470254396,-185.41284158,0.00042077,30]
[312934164,1706470254406,-171.8540469,0.00042077,21]
[312934165,1706470254415,-188.91898444,0.00042077,30]
[312934166,1706470254424,-729.55084033,0.00042077,30]
[312934167,1706470254433,-30631.96584643,0.00042077,2]
[312934168,1706470254442,-150.0,0.00042077,30]
[312934169,1706470254452,-1539.12734607,0.00042077,2]
[312934170,1706470254461,-306.575788,0.00042077,30]
[312934171,1706470254470,-1976.709031,0.00042077,30]
[312934172,1706470254480,-3871.8475444,0.00042077,2]
[312934173,1706470254489,-150.0,0.00042078,30]
[312934174,1706470254501,-383.84878585,0.00042078,2]
[312934175,1706470254510,-230.30927151,0.00042078,2]
[312934176,1706470254519,-196.933261,0.00042078,14]
[312934177,1706470254530,-196.933255,0.00042078,14]
[312934178,1706470254539,-151.0,0.00042078,14]
[312934179,1706470254549,-255.322738,0.00042078,14]
[312934180,1706470254559,-1136.594861,0.00042078,14]
[312934181,1706470254568,-1136.594852,0.00042078,14]
[312934182,1706470254578,-151.0,0.00042078,14]
[312934183,1706470254588,-1716.41985388,0.00042092,5]
[312934184,1706470254599,-15526.47,0.000421,7]
[312934185,1706470254608,-4462.16,0.000421,7]
[312934186,1706470254617,-226.168015,0.00042151,30]
[312934187,1706470254626,-1961.462314,0.00042151,30]
[312934188,1706470254635,-5880.285322,0.00042151,30]
[312934189,1706470254644,-14257.70489,0.00042151,30]
[312934190,1706470254654,-260.832583,0.00042151,30]
[312934191,1706470254663,-346.075421,0.00042151,30]
[312934192,1706470254672,-789.07,0.00042204,2]
[312934193,1706470254682,-1000.0,0.00042205,2]
[312934194,1706470254691,-152.68540592,0.0004236,15]
[312934195,1706470254700,-150.31,0.00042466,2]
[312934196,1706470254709,-155.0,0.00042467,2]
[312934197,1706470254719,-173.104974,0.00042658,30]
[312934198,1706470254728,-226.168015,0.00042658,30]
[312934199,1706470254737,-1961.462314,0.00042658,30]
[312934200,1706470254746,-5880.285322,0.00042658,30]
[312934201,1706470254755,-14257.70489,0.00042658,30]
[312934202,1706470254764,-173.368767,0.00042658,30]
[312934203,1706470254773,-260.832583,0.00042658,30]
[312934204,1706470254782,-346.075421,0.00042658,30]
[312934205,1706470254791,-512.97602,0.000427,2]
[312934206,1706470254800,-50571.42,0.000427,9]
[312934207,1706470254923,-16166.89540153,0.00042854,5]
[312934208,1706470254932,-299.57998851,0.00042857,4]
[312934209,1706470254941,-2001.66,0.000429,2]
[312934210,1706470254950,-338.0,0.0004299,2]
[312934211,1706470254959,-299.0,0.0004299,2]
[312934212,1706470254968,-25000.0,0.00043,2]
[312934213,1706470254977,-150.06464849,0.00043,2]
[312934214,1706470254986,-152.68540592,0.00043056,18]
[312934215,1706470254999,-150.0,0.00043088,120]
[312934216,1706470255008,-195.56655507,0.00043169,4]
[312934217,1706470255018,-262.36008467,0.00043169,4]
[312934218,1706470255027,-150.41394891,0.00043437,2]
[312934219,1706470255036,-152.0,0.00043457,3]
[312934220,1706470255046,-201.0,0.000435,14]
[312934221,1706470255055,-1716.41985388,0.0004367,5]
[312934222,1706470255065,-1000.0,0.00043677,2]
[312934223,1706470255078,-152.68540592,0.00043752,20]
[312934224,1706470255087,-479.0,0.0004379,2]
[312934225,1706470255097,-422.0,0.0004379,2]
[312934226,1706470255107,-150.31,0.00043836,2]
[312934227,1706470255116,-8187.39,0.00043836,2]
[312934228,1706470255125,-165.46,0.00043836,15]
[312934229,1706470255134,-163.86,0.00043836,2]
[312934230,1706470255144,-155.0,0.00043837,2]
[312934231,1706470255153,-25000.0,0.000439,2]
[312934232,1706470255163,-2001.66,0.000439,2]
[312934233,1706470255173,-289.0401689,0.00044,30]
[312934234,1706470255182,-200.0,0.000441,2]
[312934235,1706470255191,-200.0,0.000441,2]
[312934236,1706470255201,-152.68540592,0.00044447,23]
[312934237,1706470255210,-789.07,0.00044468,2]
[312934238,1706470255220,-437.48790011,0.00044526,4]
[312934239,1706470255229,-210.0,0.00044785,2]
[312934240,1706470255238,-2001.66,0.000449,2]
[312934241,1706470255247,-5194.56445658,0.00045,5]
[312934242,1706470255256,-225.016175,0.00045,2]
[312934243,1706470255266,-632.07708063,0.00045,60]
[312934244,1706470255276,-289.63250539,0.00045,30]
[312934245,1706470255286,-300.0,0.00045,46]
[312934246,1706470255294,-150.0,0.00045,30]
[312934247,1706470255304,-155.43641126,0.00045,4]
[312934248,1706470255313,-1600.0,0.00045,7]
[312934249,1706470255322,-316.76725076,0.00045,2]
[312934250,1706470255331,-387.0,0.00045,2]
[312934251,1706470255340,-6178.0,0.00045,2]
[312934252,1706470255349,-211.3052552,0.00045,2]
[312934253,1706470255358,-201.0,0.00045,18]
[312934254,1706470255368,-2515.26832977,0.00045111,60]
[312934255,1706470255377,-152.68540592,0.00045143,26]
[312934256,1706470255386,-1000.0,0.00045149,2]
[312934257,1706470255397,-155.67,0.00045205,2]
[312934258,1706470255406,-150.31,0.00045205,2]
[312934259,1706470255415,-155.0,0.00045207,2]
[312934260,1706470255424,-262.36008467,0.00045243,5]
[312934261,1706470255433,-195.56655507,0.00045243,5]
[312934262,1706470255442,-1716.41985388,0.00045249,5]
[312934263,1706470255451,-152.0,0.00045275,4]
[312934264,1706470255460,-500.0,0.0004542,2]
[312934265,1706470255469,-500.0,0.0004542,2]
[312934266,1706470255479,-8477.62871328,0.0004542,7]
[312934267,1706470255488,-328.0,0.0004549,2]
[312934268,1706470255498,-313.0,0.0004549,2]
[312934269,1706470255507,-500.0,0.00045599,2]
[312934270,1706470255516,-500.0,0.00045599,2]
[312934271,1706470255525,-500.0,0.00045599,2]
[312934272,1706470255534,-500.0,0.00045599,2]
[312934273,1706470255543,-500.0,0.00045599,2]
[312934274,1706470255553,-500.0,0.00045599,2]
[312934275,1706470255563,-500.0,0.00045599,2]
[312934276,1706470255572,-500.0,0.00045599,2]
[312934277,1706470255582,-500.0,0.00045599,2]
[312934278,1706470255591,-500.0,0.00045599,2]
[312934279,1706470255600,-500.0,0.00045599,2]
[312934280,1706470255609,-500.0,0.00045599,2]
[312934281,1706470255618,-500.0,0.00045599,2]
[312934282,1706470255627,-500.0,0.00045599,2]
[312934283,1706470255636,-500.0,0.00045599,2]
[312934284,1706470255645,-500.0,0.00045599,2]
[312934285,1706470255654,-500.0,0.00045599,2]
[312934286,1706470255663,-500.0,0.00045599,2]
[312934287,1706470255672,-500.0,0.00045599,2]
[312934288,1706470255681,-500.0,0.00045599,2]
[312934289,1706470255690,-500.0,0.00045599,2]
[312934290,1706470255699,-500.0,0.00045599,2]
[312934291,1706470255708,-500.0,0.00045599,2]
[312934292,1706470255717,-500.0,0.00045599,2]
[312934293,1706470255725,-500.0,0.00045599,2]
[312934294,1706470255734,-500.0,0.00045599,2]
[312934295,1706470255743,-500.0,0.00045599,2]
[312934296,1706470255752,-500.0,0.00045599,2]
[312934297,1706470255761,-500.0,0.00045599,2]
[312934298,1706470255770,-500.0,0.00045599,2]
[312934299,1706470255778,-500.0,0.00045599,2]
[312934300,1706470255787,-500.0,0.00045599,2]
[312934301,1706470255796,-500.0,0.00045599,2]
[312934302,1706470255805,-500.0,0.00045599,2]
[312934303,1706470255815,-500.0,0.00045599,2]
[312934304,1706470255823,-500.0,0.00045599,2]
[312934305,1706470255832,-500.0,0.00045599,2]
[312934306,1706470255842,-500.0,0.00045599,2]
[312934307,1706470255851,-500.0,0.00045599,2]
[312934308,1706470255860,-500.0,0.00045599,2]
[312934309,1706470255869,-500.0,0.00045599,2]
[312934310,1706470255878,-500.0,0.00045599,2]
[312934311,1706470255887,-500.0,0.00045599,2]
[312934312,1706470255896,-500.0,0.00045599,2]
[312934313,1706470255905,-500.0,0.00045599,2]
[312934314,1706470255914,-500.0,0.00045599,2]
[312934315,1706470255923,-500.0,0.00045599,2]
[312934316,1706470255932,-500.0,0.00045599,2]
[312934317,1706470255940,-500.0,0.00045599,2]
[312934318,1706470255949,-500.0,0.00045599,2]
[312934319,1706470255958,-500.0,0.00045599,2]
[312934320,1706470255967,-500.0,0.00045599,2]
[312934321,1706470255976,-500.0,0.00045599,2]
[312934322,1706470255985,-7272.92,0.000456,7]
[312934323,1706470255994,-163.86,0.00045662,2]
[312934324,1706470256004,-219.1882429,0.000458,36]
[312934325,1706470256013,-152.68540592,0.00045839,28]
[312934326,1706470256023,-475.81234047,0.0004588,100]
[312934327,1706470256032,-1025.42,0.0004589,2]
[312934328,1706470256042,-379.92,0.000459,2]
[312934329,1706470256051,-380.0,0.000459,2]
[312934330,1706470256060,-380.0,0.000459,2]
[312934331,1706470256069,-380.0,0.000459,2]
[312934332,1706470256079,-380.0,0.000459,2]
[312934333,1706470256088,-380.0,0.000459,2]
[312934334,1706470256098,-380.0,0.000459,2]
[312934335,1706470256108,-380.0,0.000459,2]
[312934336,1706470256118,-302.97,0.000459,2]
[312934337,1706470256128,-2001.66,0.000459,2]
[312934338,1706470256139,-916.55096289,0.00045997,4]
[312934339,1706470256151,-152.92,0.000461,5]
[312934340,1706470256159,-152.92,0.000461,5]
[312934341,1706470256169,-323.33,0.000461,5]
[312934342,1706470256178,-323.33,0.000461,5]
[312934343,1706470256187,-323.33,0.000461,5]
[312934344,1706470256195,-323.33,0.000461,5]
[312934345,1706470256205,-323.33,0.000461,5]
[312934346,1706470256214,-323.33,0.000461,5]
[312934347,1706470256223,-323.33,0.000461,5]
[312934348,1706470256232,-323.33,0.000461,5]
[312934349,1706470256241,-323.33,0.000461,5]
[312934350,1706470256250,-323.33,0.000461,5]
[312934351,1706470256259,-323.33,0.000461,5]
[312934352,1706470256268,-323.33,0.000461,5]
[312934353,1706470256277,-323.33,0.000461,5]
[312934354,1706470256286,-323.33,0.000461,5]
[312934355,1706470256295,-323.33,0.000461,5]
[312934356,1706470256306,-323.33,0.000461,5]
[312934357,1706470256315,-323.33,0.000461,5]
[312934358,1706470256324,-323.33,0.000461,5]
[312934359,1706470256334,-323.33,0.000461,5]
[312934360,1706470256343,-323.33,0.000461,5]
[312934361,1706470256352,-16166.89540153,0.00046169,8]
[312934362,1706470256361,-12628.11774503,0.00046192,3]
[312934363,1706470256371,-18215.37693956,0.00046192,4]
[312934364,1706470256380,-12605.37895187,0.00046192,3]
[312934365,1706470256389,-3506.06583609,0.00046192,3]
[312934366,1706470256398,-14403.43178559,0.00046192,3]
[312934367,1706470256407,-200.0,0.000462,2]
[312934368,1706470256417,-1016.0,0.000462,7]
[312934369,1706470256427,-316.29178502,0.000462,2]
[312934370,1706470256436,-201.0,0.000465,22]
[312934371,1706470256445,-152.68540592,0.00046534,31]
[312934372,1706470256454,-187.5,0.00046575,120]
[312934373,1706470256463,-150.31,0.00046575,2]
[312934374,1706470256472,-155.0,0.00046577,2]
[312934375,1706470256481,-2951.67554482,0.00046599,4]
[312934376,1706470256490,-1000.0,0.000466,2]
[312934377,1706470256499,-495.50384115,0.00046665,14]
[312934378,1706470256508,-789.07,0.00046732,2]
[312934379,1706470256518,-1716.41985388,0.00046828,5]
[312934380,1706470256527,-4522.97,0.00046849,120]
[312934381,1706470256536,-6863.4,0.00046849,120]
[312934382,1706470256547,-500.0,0.00046883,14]
[312934383,1706470256557,-2001.66,0.000469,2]
[312934384,1706470256567,-300.0,0.00047,48]
[312934385,1706470256576,-1778.55,0.00047007,5]
[312934386,1706470256586,-152.0,0.00047094,5]
[312934387,1706470256596,-500.0,0.00047101,14]
[312934388,1706470256606,-4462.16,0.000472,7]
[312934389,1706470256615,-150.0,0.00047202,120]
[312934390,1706470256624,-152.68540592,0.0004723,34]
[312934391,1706470256633,-15526.47,0.000473,7]
[312934392,1706470256642,-195.56655507,0.00047317,7]
[312934393,1706470256651,-262.36008467,0.00047317,7]
[312934394,1706470256660,-500.0,0.00047318,14]
[312934395,1706470256669,-205.0,0.0004747,30]
[312934396,1706470256678,-204.0,0.0004747,30]
[312934397,1706470256687,-163.86,0.00047489,2]
[312934398,1706470256697,-500.0,0.00047536,14]
[312934399,1706470256706,-165.46,0.00047572,15]
[312934400,1706470256715,-7272.92,0.000476,7]
[312934401,1706470256724,-500.0,0.00047754,14]
[312934402,1706470256830,-210.0,0.00047785,2]
[312934403,1706470256852,-2001.66,0.000479,2]
[312934404,1706470256862,-152.68540592,0.00047926,36]
[312934405,1706470256871,-150.0,0.0004794,120]
[312934406,1706470256880,-150.31,0.00047945,2]
[312934407,1706470256889,-155.0,0.00047947,2]
[312934408,1706470256898,-500.0,0.00047971,14]
[312934409,1706470256907,-1019.0,0.00048,18]
[312934410,1706470256917,-500000.0,0.00048,14]
[312934411,1706470256926,-702.17344018,0.00048,4]
[312934412,1706470256935,-1625.14234419,0.00048,2]
[312934413,1706470256944,-1574.80234118,0.00048,2]
[312934414,1706470256953,-201.0,0.00048,26]
[312934415,1706470256962,-4000.0,0.00048,2]
[312934416,1706470256971,-972.13710802,0.00048085,30]
[312934417,1706470256980,-500.0,0.00048189,14]
[312934418,1706470256990,-151.0,0.00048269,2]
[312934419,1706470257002,-500.0,0.00048407,14]
[312934420,1706470257011,-1716.41985388,0.00048407,5]
[312934421,1706470257020,-5000.0,0.00048497,4]
[312934422,1706470257029,-255.0,0.000485,2]
[312934423,1706470257038,-154.72724428,0.00048503,10]
[312934424,1706470257047,-240.68983011,0.00048544,6]
[312934425,1706470257057,-204.65634606,0.00048544,6]
[312934426,1706470257065,-176.47589815,0.00048544,6]
[312934427,1706470257075,-897.44982433,0.00048544,6]
[312934428,1706470257084,-268.85586184,0.00048544,6]
[312934429,1706470257093,-3751.85240859,0.00048544,6]
[312934430,1706470257102,-1056.17068082,0.00048544,6]
[312934431,1706470257111,-1159.9013379,0.00048544,6]
[312934432,1706470257120,-1687.08203217,0.00048544,7]
[312934433,1706470257129,-2173.27907833,0.00048544,7]
[312934434,1706470257138,-3405.94638996,0.00048544,7]
[312934435,1706470257147,-3697.16533301,0.00048544,7]
[312934436,1706470257156,-1007.01298511,0.00048544,7]
[312934437,1706470257166,-676.49548966,0.00048544,6]
[312934438,1706470257175,-267.78736131,0.00048544,6]
[312934439,1706470257184,-210.87733424,0.00048544,6]
[312934440,1706470257193,-208.16759443,0.00048544,6]
[312934441,1706470257202,-4462.16,0.000486,7]
[312934442,1706470257211,-152.68540592,0.00048621,39]
[312934443,1706470257219,-500.0,0.00048625,14]
[312934444,1706470257229,-15526.47,0.000487,7]
[312934445,1706470257238,-331.22,0.00048767,2]
[312934446,1706470257247,-170.52,0.00048767,2]
[312934447,1706470257256,-344.77,0.00048767,2]
[312934448,1706470257265,-6611.91391305,0.00048802,10]
[312934449,1706470257274,-500.0,0.00048842,14]
[312934450,1706470257283,-590.0,0.0004889,2]
[312934451,1706470257293,-2320.321637,0.000489,2]
[312934452,1706470257302,-2944.00769956,0.000489,2]
[312934453,1706470257311,-2944.00769944,0.000489,2]
[312934454,1706470257321,-2944.00769944,0.000489,2]
[312934455,1706470257330,-2944.00769944,0.000489,2]
[312934456,1706470257340,-152.0,0.00048912,6]
[312934457,1706470257350,-205.0,0.0004894,30]
[312934458,1706470257359,-204.0,0.0004894,30]
[312934459,1706470257369,-511.0,0.0004899,2]
[312934460,1706470257379,-452.0,0.0004899,2]
[312934461,1706470257388,-789.07,0.00048995,2]
[312934462,1706470257398,-941.78794294,0.00048996,4]
[312934463,1706470257407,-158.67264273,0.00048996,4]
[312934464,1706470257417,-298.82580935,0.00048996,4]
[312934465,1706470257427,-156.22870762,0.00048996,4]